[Event "Wch u20 girls"]
[Site "Kocaeli"]
[Date "2013.09.24"]
[Round "11.1"]
[White "Bulmaga, Irina"]
[Black "Padmini, Rout"]
[Result "0-1"]
[ECO "B51"]
[WhiteElo "2410"]
[BlackElo "2312"]
[PlyCount "114"]
[EventDate "2013.09.??"]
[EventType "swiss"]
[EventRounds "13"]
[EventCountry "TUR"]
[Source "CBase R.Goldau"]
[SourceDate "2000.03.01"]
[TimeControl "40/5400+30:1800+30"]

1. e4 {[%emt 0:00:30]} c5 {[%emt 0:00:30]} 2. Nf3 {[%emt 0:00:00]} Nc6 {[%emt
0:00:00]} 3. Bb5 {[%emt 0:00:00]} d6 {[%emt 0:00:00]} 4. Bxc6+ {[%emt 0:00:00]}
bxc6 {[%emt 0:00:30]} 5. O-O {[%emt 0:00:00]} Bg4 {[%emt 0:00:30]} 6. h3 {
[%emt 0:00:30]} Bh5 {[%emt 0:00:00]} 7. Re1 {[%emt 0:00:30]} Nf6 {[%emt 0:01:
00]} 8. d3 {[%emt 0:01:30]} e6 {[%emt 0:04:30]} 9. Nbd2 {[%emt 0:05:30]} Nd7 {
[%emt 0:01:30]} 10. Nc4 {[%emt 0:06:30]} Be7 {[%emt 0:01:30]} 11. Bf4 {[%emt 0:
08:30]} Nb6 {[%emt 0:06:30]} 12. Ncd2 {[%emt 0:05:30]} O-O {[%emt 0:00:30]} 13.
e5 {[%emt 0:05:30]} d5 {[%emt 0:22:30]} 14. c4 {[%emt 0:05:30]} Bg6 {[%emt 0:
03:30]} 15. Qb3 {[%emt 0:00:30]} a5 {[%emt 0:09:30]} 16. Rac1 {[%emt 0:12:30]}
a4 {[%emt 0:03:30]} 17. Qa3 {[%emt 0:00:00]} Re8 {[%emt 0:01:30]} 18. d4 {
[%emt 0:06:00]} cxd4 {[%emt 0:16:30]} 19. c5 {[%emt 0:00:30]} d3 {[%emt 0:00:
30]} 20. Nd4 {[%emt 0:05:30]} Qc8 {[%emt 0:01:30]} 21. Bh2 {[%emt 0:01:30]} Nd7
{[%emt 0:03:30]} 22. f4 {[%emt 0:04:30]} Qa6 {[%emt 0:00:30]} 23. Kh1 {[%emt 0:
07:30]} Rec8 {[%emt 0:08:41]} 24. f5 {[%emt 0:02:30]} Bxf5 {[%emt 0:01:18]} 25.
Nxf5 {[%emt 0:00:30]} exf5 {[%emt 0:00:02]} 26. Bg1 {[%emt 0:01:30]} Qb5 {
[%emt 0:04:14]} 27. Bd4 {[%emt 0:01:03]} Nf8 {[%emt 0:00:29]} 28. Re3 {[%emt 0:
05:05]} Ne6 {[%emt 0:00:31]} 29. Rxd3 {[%emt 0:00:17]} Nf4 {[%emt 0:01:12]} 30.
Rcc3 {[%emt 0:03:57]} Nxd3 {[%emt 0:00:19]} 31. Rxd3 {[%emt 0:00:07]} Ra5 {
[%emt 0:01:26]} 32. Qc3 {[%emt 0:10:05]} Bxc5 {[%emt 0:01:49]} 33. e6 {[%emt 0:
00:13]} Bxd4 {[%emt 0:02:58]} 34. exf7+ {[%emt 0:00:06]} Kxf7 {[%emt 0:00:28]}
35. Qxd4 {[%emt 0:00:02]} Qc5 {[%emt 0:01:21]} 36. Qh4 {[%emt 0:01:01]} Kg8 {
[%emt 0:00:41]} 37. Nf3 {[%emt 0:00:30]} Re8 {[%emt 0:01:02]} 38. Ng5 {[%emt 0:
01:35]} h6 {[%emt 0:00:44]} 39. Qh5 {[%emt 0:00:02]} Qf8 {[%emt 0:00:32]} 40.
Nf3 {[%emt 0:00:00]} Rc5 {[%emt 0:00:00]} 41. Qg6 {[%emt 0:08:27]} Qf7 {[%emt
0:01:43]} 42. Qd6 {[%emt 0:04:30]} Qe7 {[%emt 0:02:30]} 43. Qg3 {[%emt 0:01:30]
} Rc2 {[%emt 0:00:30]} 44. Rd4 {[%emt 0:00:55]} Rc4 {[%emt 0:00:30]} 45. Rd1 {
[%emt 0:02:27]} f4 {[%emt 0:00:30]} 46. Qg4 {[%emt 0:00:35]} Qf6 {[%emt 0:00:
30]} 47. b3 {[%emt 0:00:46]} Rc2 {[%emt 0:01:30]} 48. bxa4 {[%emt 0:01:53]}
Rxa2 {[%emt 0:00:30]} 49. Rb1 {[%emt 0:01:23]} Kh7 {[%emt 0:01:30]} 50. Qd7 {
[%emt 0:01:34]} Ree2 {[%emt 0:01:30]} 51. Rg1 {[%emt 0:01:24]} Rxa4 {[%emt 0:
00:30]} 52. Rc1 {[%emt 0:03:07]} Ra1 {[%emt 0:01:30]} 53. Rxa1 {[%emt 0:00:07]}
Qxa1+ {[%emt 0:00:00]} 54. Ng1 {[%emt 0:00:49]} Re1 {[%emt 0:01:00]} 55. Qf5+ {
[%emt 0:00:18]} g6 {[%emt 0:00:30]} 56. Qd7+ {[%emt 0:00:45]} Qg7 {[%emt 0:00:
30]} 57. Qxc6 {[%emt 0:00:15]} Qa7 {[%emt 0:00:00]} 0-1

[Event "Wch u20 girls"]
[Site "Kocaeli"]
[Date "2013.09.24"]
[Round "11.2"]
[White "Cori T, Deysi"]
[Black "Goryachkina, Aleksandra"]
[Result "0-1"]
[ECO "D11"]
[WhiteElo "2434"]
[BlackElo "2409"]
[PlyCount "76"]
[EventDate "2013.09.??"]
[EventType "swiss"]
[EventRounds "13"]
[EventCountry "TUR"]
[Source "CBase R.Goldau"]
[SourceDate "2000.03.01"]
[TimeControl "40/5400+30:1800+30"]

1. d4 {[%emt 0:00:30]} d5 {[%emt 0:00:30]} 2. Nf3 {[%emt 0:00:00]} Nf6 {[%emt
0:00:00]} 3. c4 {[%emt 0:00:00]} c6 {[%emt 0:00:00]} 4. Nbd2 {[%emt 0:00:30]}
Bf5 {[%emt 0:01:30]} 5. g3 {[%emt 0:01:30]} e6 {[%emt 0:01:30]} 6. Bg2 {[%emt
0:00:30]} h6 {[%emt 0:01:30]} 7. O-O {[%emt 0:00:30]} Nbd7 {[%emt 0:00:30]} 8.
b3 {[%emt 0:01:30]} Bd6 {[%emt 0:00:30]} 9. Bb2 {[%emt 0:00:00]} O-O {[%emt 0:
01:30]} 10. Ne5 {[%emt 0:22:00]} Qc7 {[%emt 0:10:30]} 11. Nxd7 {[%emt 0:00:30]}
Qxd7 {[%emt 0:01:30]} 12. f3 {[%emt 0:02:30]} Rfe8 {[%emt 0:05:30]} 13. c5 {
[%emt 0:33:30]} Bc7 {[%emt 0:01:30]} 14. e4 {[%emt 0:01:30]} dxe4 {[%emt 0:17:
30]} 15. fxe4 {[%emt 0:00:30]} Bg4 {[%emt 0:10:30]} 16. Qc1 {[%emt 0:00:30]} e5
{[%emt 0:05:30]} 17. d5 {[%emt 0:00:00]} Nxd5 {[%emt 0:05:30]} 18. exd5 {[%emt
0:02:00]} cxd5 {[%emt 0:00:30]} 19. Qc3 {[%emt 0:03:30]} f5 {[%emt 0:05:30]}
20. Nf3 {[%emt 0:24:02]} Kh7 {[%emt 0:11:10]} 21. Rae1 {[%emt 0:00:37]} d4 {
[%emt 0:00:30]} 22. Qd3 {[%emt 0:00:30]} Rad8 {[%emt 0:00:39]} 23. Nh4 {[%emt
0:02:45]} g6 {[%emt 0:04:26]} 24. h3 {[%emt 0:01:13]} e4 {[%emt 0:07:34]} 25.
Rxe4 {[%emt 0:01:17]} fxe4 {[%emt 0:01:35]} 26. Bxe4 {[%emt 0:00:01]} Bxh3 {
[%emt 0:01:53]} 27. Bxg6+ {[%emt 0:00:18]} Kh8 {[%emt 0:01:07]} 28. Bxe8 {
[%emt 0:01:03]} Bxf1 {[%emt 0:00:47]} 29. Qd2 {[%emt 0:00:43]} Rxe8 {[%emt 0:
02:06]} 30. Qxh6+ {[%emt 0:00:41]} Kg8 {[%emt 0:00:01]} 31. Qg6+ {[%emt 0:00:
00]} Kf8 {[%emt 0:00:45]} 32. Qf6+ {[%emt 0:00:00]} Kg8 {[%emt 0:00:06]} 33.
Bxd4 {[%emt 0:00:50]} Qg4 {[%emt 0:01:35]} 34. Nf5 {[%emt 0:00:45]} Bf4 {[%emt
0:00:34]} 35. Qh8+ {[%emt 0:01:06]} Kf7 {[%emt 0:00:01]} 36. Qf6+ {[%emt 0:00:
00]} Kg8 {[%emt 0:00:01]} 37. Qh8+ {[%emt 0:00:32]} Kf7 {[%emt 0:00:01]} 38.
Qf6+ {[%emt 0:00:30]} Kg8 {[%emt 0:00:01]} 0-1

[Event "Wch u20 girls"]
[Site "Kocaeli"]
[Date "2013.09.24"]
[Round "11.3"]
[White "Arabidze, Meri"]
[Black "Medina, Warda Aulia"]
[Result "1/2-1/2"]
[ECO "E43"]
[WhiteElo "2332"]
[BlackElo "2301"]
[PlyCount "161"]
[EventDate "2013.09.??"]
[EventType "swiss"]
[EventRounds "13"]
[EventCountry "TUR"]
[Source "CBase R.Goldau"]
[SourceDate "2000.03.01"]
[TimeControl "40/5400+30:1800+30"]

1. d4 {[%emt 0:00:30]} Nf6 {[%emt 0:00:30]} 2. c4 {[%emt 0:00:00]} e6 {[%emt 0:
00:00]} 3. Nf3 {[%emt 0:00:00]} b6 {[%emt 0:00:00]} 4. Nc3 {[%emt 0:00:00]} Bb4
{[%emt 0:00:30]} 5. e3 {[%emt 0:00:00]} O-O {[%emt 0:04:30]} 6. Bd3 {[%emt 0:
00:30]} Bb7 {[%emt 0:04:30]} 7. O-O {[%emt 0:00:30]} Bxc3 {[%emt 0:01:30]} 8.
bxc3 {[%emt 0:00:30]} d6 {[%emt 0:00:30]} 9. Nd2 {[%emt 0:05:30]} Nbd7 {[%emt
0:03:30]} 10. f3 {[%emt 0:09:30]} Qe7 {[%emt 0:06:30]} 11. Re1 {[%emt 0:03:30]}
e5 {[%emt 0:02:30]} 12. e4 {[%emt 0:04:30]} Nh5 {[%emt 0:03:30]} 13. g3 {[%emt
0:04:30]} g6 {[%emt 0:03:30]} 14. Nf1 {[%emt 0:01:30]} Ng7 {[%emt 0:02:30]} 15.
Ne3 {[%emt 0:04:30]} f5 {[%emt 0:07:30]} 16. exf5 {[%emt 0:10:30]} gxf5 {[%emt
0:00:30]} 17. Nd5 {[%emt 0:05:30]} Bxd5 {[%emt 0:05:30]} 18. cxd5 {[%emt 0:00:
30]} Kh8 {[%emt 0:03:30]} 19. Bb5 {[%emt 0:10:30]} Nf6 {[%emt 0:11:30]} 20.
dxe5 {[%emt 0:03:30]} dxe5 {[%emt 0:00:30]} 21. c4 {[%emt 0:00:30]} Rad8 {
[%emt 0:04:30]} 22. Qb3 {[%emt 0:03:30]} Nfe8 {[%emt 0:06:30]} 23. Bb2 {[%emt
0:12:38]} e4 {[%emt 0:00:30]} 24. Bc6 {[%emt 0:02:16]} Nd6 {[%emt 0:00:30]} 25.
Kh1 {[%emt 0:00:41]} h6 {[%emt 0:04:30]} 26. a4 {[%emt 0:02:05]} a5 {[%emt 0:
03:30]} 27. Qc3 {[%emt 0:00:41]} Kh7 {[%emt 0:00:30]} 28. Rac1 {[%emt 0:03:34]}
Rf7 {[%emt 0:01:32]} 29. c5 {[%emt 0:04:30]} bxc5 {[%emt 0:00:18]} 30. f4 {
[%emt 0:00:25]} Rb8 {[%emt 0:01:13]} 31. Ba1 {[%emt 0:00:35]} Nh5 {[%emt 0:02:
20]} 32. Qxa5 {[%emt 0:01:25]} Rg8 {[%emt 0:02:46]} 33. Re3 {[%emt 0:02:56]}
Nf6 {[%emt 0:00:47]} 34. Qxc5 {[%emt 0:04:05]} Ng4 {[%emt 0:00:19]} 35. Kg1 {
[%emt 0:00:40]} Nxe3 {[%emt 0:05:21]} 36. Qxe3 {[%emt 0:00:34]} Nc8 {[%emt 0:
00:30]} 37. a5 {[%emt 0:00:20]} Qb4 {[%emt 0:00:11]} 38. a6 {[%emt 0:00:44]}
Qa5 {[%emt 0:01:52]} 39. Bb7 {[%emt 0:00:45]} Nd6 {[%emt 0:00:26]} 40. Bc3 {
[%emt 0:00:00]} Qb5 {[%emt 0:00:00]} 41. Qa7 {[%emt 0:16:22]} Qd3 {[%emt 0:20:
52]} 42. Be5 {[%emt 0:01:18]} e3 {[%emt 0:02:29]} 43. Qd4 {[%emt 0:05:50]} Qe2
{[%emt 0:00:32]} 44. Rf1 {[%emt 0:02:15]} Ne4 {[%emt 0:06:13]} 45. Qd1 {[%emt
0:00:26]} Qa2 {[%emt 0:01:10]} 46. Qf3 {[%emt 0:01:24]} Nd2 {[%emt 0:03:04]}
47. Qh5 {[%emt 0:02:42]} Rff8 {[%emt 0:03:51]} 48. Re1 {[%emt 0:00:23]} Nc4 {
[%emt 0:00:21]} 49. Qe2 {[%emt 0:00:29]} Qb3 {[%emt 0:00:39]} 50. Bxc7 {[%emt
0:00:41]} Rf6 {[%emt 0:01:46]} 51. Rc1 {[%emt 0:02:50]} Nd6 {[%emt 0:01:20]}
52. Bc6 {[%emt 0:01:51]} Qa3 {[%emt 0:00:29]} 53. Re1 {[%emt 0:00:19]} Ne4 {
[%emt 0:01:08]} 54. Qxe3 {[%emt 0:00:37]} Qxa6 {[%emt 0:00:04]} 55. Be5 {[%emt
0:00:35]} Rf7 {[%emt 0:00:20]} 56. Ra1 {[%emt 0:00:24]} Qc4 {[%emt 0:01:12]}
57. Rc1 {[%emt 0:00:00]} Qb4 {[%emt 0:00:20]} 58. Rd1 {[%emt 0:00:41]} Qc4 {
[%emt 0:00:19]} 59. Rc1 {[%emt 0:00:54]} Qb4 {[%emt 0:00:04]} 60. Ra1 {[%emt 0:
00:31]} Qc4 {[%emt 0:00:45]} 61. Ra4 {[%emt 0:00:27]} Qc2 {[%emt 0:00:07]} 62.
Ra1 {[%emt 0:00:31]} Qc4 {[%emt 0:00:23]} 63. Re1 {[%emt 0:00:24]} Rc8 {[%emt
0:01:01]} 64. Qe2 {[%emt 0:00:36]} Qc5+ {[%emt 0:00:21]} 65. Qe3 {[%emt 0:00:
03]} Qc4 {[%emt 0:00:20]} 66. Rc1 {[%emt 0:00:01]} Qb4 {[%emt 0:00:05]} 67. Rd1
{[%emt 0:00:41]} Qc4 {[%emt 0:00:12]} 68. Qd4 {[%emt 0:01:03]} Qe2 {[%emt 0:00:
00]} 69. Rf1 {[%emt 0:00:46]} Nd2 {[%emt 0:00:31]} 70. Qf2 {[%emt 0:00:24]}
Qxf1+ {[%emt 0:00:48]} 71. Qxf1 {[%emt 0:00:01]} Nxf1 {[%emt 0:00:00]} 72. Kxf1
{[%emt 0:00:01]} Kg6 {[%emt 0:00:00]} 73. Ke2 {[%emt 0:00:28]} Ra7 {[%emt 0:00:
00]} 74. Ke3 {[%emt 0:00:23]} Ra2 {[%emt 0:00:43]} 75. Kd4 {[%emt 0:01:35]} Rc2
{[%emt 0:00:13]} 76. Bb7 {[%emt 0:00:32]} Rd2+ {[%emt 0:01:21]} 77. Ke3 {[%emt
0:00:01]} Rcc2 {[%emt 0:00:00]} 78. d6 {[%emt 0:00:54]} Re2+ {[%emt 0:02:28]}
79. Kd3 {[%emt 0:00:21]} Red2+ {[%emt 0:00:35]} 80. Ke3 {[%emt 0:00:00]} Re2+ {
[%emt 0:01:04]} 81. Kd3 {[%emt 0:00:02]} 1/2-1/2

[Event "Wch u20 girls"]
[Site "Kocaeli"]
[Date "2013.09.24"]
[Round "11.4"]
[White "Hejazipour, Mitra"]
[Black "Kashlinskaya, Alina"]
[Result "1/2-1/2"]
[ECO "A58"]
[WhiteElo "2256"]
[BlackElo "2390"]
[PlyCount "94"]
[EventDate "2013.09.??"]
[EventType "swiss"]
[EventRounds "13"]
[EventCountry "TUR"]
[Source "CBase R.Goldau"]
[SourceDate "2000.03.01"]
[TimeControl "40/5400+30:1800+30"]

1. d4 {[%emt 0:00:30]} Nf6 {[%emt 0:00:30]} 2. Nf3 {[%emt 0:00:00]} g6 {[%emt
0:00:00]} 3. c4 {[%emt 0:00:00]} Bg7 {[%emt 0:00:00]} 4. g3 {[%emt 0:00:30]} c5
{[%emt 0:00:00]} 5. d5 {[%emt 0:00:30]} b5 {[%emt 0:00:00]} 6. cxb5 {[%emt 0:
00:30]} a6 {[%emt 0:00:30]} 7. bxa6 {[%emt 0:00:30]} d6 {[%emt 0:00:30]} 8. Nc3
{[%emt 0:00:30]} O-O {[%emt 0:00:30]} 9. Bg2 {[%emt 0:00:30]} Nbd7 {[%emt 0:00:
00]} 10. O-O {[%emt 0:06:30]} Nb6 {[%emt 0:00:00]} 11. e4 {[%emt 0:10:30]} Bxa6
{[%emt 0:00:30]} 12. Re1 {[%emt 0:00:30]} Nfd7 {[%emt 0:00:30]} 13. Qc2 {[%emt
0:05:30]} Nc4 {[%emt 0:02:30]} 14. Nd2 {[%emt 0:15:30]} Nce5 {[%emt 0:06:30]}
15. Bf1 {[%emt 0:05:30]} c4 {[%emt 0:04:30]} 16. b4 {[%emt 0:06:30]} cxb3 {
[%emt 0:07:30]} 17. axb3 {[%emt 0:00:30]} Bxf1 {[%emt 0:00:30]} 18. Rxa8 {
[%emt 0:00:30]} Qxa8 {[%emt 0:00:30]} 19. Rxf1 {[%emt 0:00:30]} Rc8 {[%emt 0:
03:30]} 20. Bb2 {[%emt 0:08:30]} Qa6 {[%emt 0:02:30]} 21. Ba1 {[%emt 0:08:30]}
Nc5 {[%emt 0:20:30]} 22. Qb1 {[%emt 0:07:30]} h5 {[%emt 0:06:30]} 23. Na4 {
[%emt 0:07:58]} Ncd3 {[%emt 0:10:30]} 24. Nb2 {[%emt 0:01:12]} Nc5 {[%emt 0:04:
30]} 25. Na4 {[%emt 0:06:42]} Nxa4 {[%emt 0:01:30]} 26. bxa4 {[%emt 0:00:30]}
Qxa4 {[%emt 0:00:30]} 27. Bxe5 {[%emt 0:01:41]} Bxe5 {[%emt 0:00:30]} 28. Rc1 {
[%emt 0:00:20]} Rxc1+ {[%emt 0:02:30]} 29. Qxc1 {[%emt 0:00:01]} h4 {[%emt 0:
07:22]} 30. Qc8+ {[%emt 0:02:07]} Kg7 {[%emt 0:00:01]} 31. Qg4 {[%emt 0:01:40]}
Qc2 {[%emt 0:02:34]} 32. Nf3 {[%emt 0:02:56]} Qb1+ {[%emt 0:01:52]} 33. Kg2 {
[%emt 0:00:04]} h3+ {[%emt 0:01:05]} 34. Qxh3 {[%emt 0:00:04]} Qxe4 {[%emt 0:
00:05]} 35. Qh4 {[%emt 0:00:19]} Qxh4 {[%emt 0:04:09]} 36. Nxh4 {[%emt 0:00:18]
} Kf6 {[%emt 0:02:32]} 37. f4 {[%emt 0:01:10]} Bc3 {[%emt 0:01:23]} 38. Kf3 {
[%emt 0:00:38]} e6 {[%emt 0:04:50]} 39. dxe6 {[%emt 0:00:45]} fxe6 {[%emt 0:00:
17]} 40. Ke4 {[%emt 0:00:00]} g5 {[%emt 0:00:00]} 41. Ng2 {[%emt 0:07:05]} d5+
{[%emt 0:07:20]} 42. Kf3 {[%emt 0:01:30]} Bd2 {[%emt 0:03:30]} 43. Kg4 {[%emt
0:07:00]} gxf4 {[%emt 0:03:30]} 44. gxf4 {[%emt 0:00:16]} Ba5 {[%emt 0:01:30]}
45. Ne3 {[%emt 0:04:35]} Bb6 {[%emt 0:01:30]} 46. Ng2 {[%emt 0:00:59]} Bf2 {
[%emt 0:00:30]} 47. h3 {[%emt 0:00:28]} Bb6 {[%emt 0:00:30]} 1/2-1/2

[Event "Wch u20 girls"]
[Site "Kocaeli"]
[Date "2013.09.24"]
[Round "11.5"]
[White "Abdumalik, Zhansaya"]
[Black "Ibrahimova, Sabina"]
[Result "1-0"]
[ECO "B76"]
[WhiteElo "2277"]
[BlackElo "2168"]
[PlyCount "53"]
[EventDate "2013.09.??"]
[EventType "swiss"]
[EventRounds "13"]
[EventCountry "TUR"]
[Source "CBase R.Goldau"]
[SourceDate "2000.03.01"]
[TimeControl "40/5400+30:1800+30"]

1. e4 {[%emt 0:00:30]} c5 {[%emt 0:00:30]} 2. Nf3 {[%emt 0:00:00]} d6 {[%emt 0:
00:00]} 3. d4 {[%emt 0:00:00]} cxd4 {[%emt 0:00:00]} 4. Nxd4 {[%emt 0:00:00]}
Nf6 {[%emt 0:00:30]} 5. Nc3 {[%emt 0:00:00]} g6 {[%emt 0:00:00]} 6. Be3 {[%emt
0:00:30]} Bg7 {[%emt 0:00:00]} 7. f3 {[%emt 0:00:30]} O-O {[%emt 0:00:00]} 8.
Qd2 {[%emt 0:02:30]} Nc6 {[%emt 0:00:00]} 9. g4 {[%emt 0:00:30]} Be6 {[%emt 0:
09:30]} 10. O-O-O {[%emt 0:01:30]} Ne5 {[%emt 0:01:30]} 11. Be2 {[%emt 0:04:30]
} Rc8 {[%emt 0:11:30]} 12. h4 {[%emt 0:08:30]} Bc4 {[%emt 0:10:30]} 13. h5 {
[%emt 0:10:30]} Qa5 {[%emt 0:26:30]} 14. Bh6 {[%emt 0:08:30]} Bxe2 {[%emt 0:20:
24]} 15. Bxg7 {[%emt 0:02:30]} Nxf3 {[%emt 0:03:29]} 16. Qf4 {[%emt 0:24:30]}
Bxd1 {[%emt 0:07:23]} 17. Bxf6 {[%emt 0:07:30]} Rxc3 {[%emt 0:06:07]} 18. hxg6
{[%emt 0:06:42]} fxg6 {[%emt 0:00:07]} 19. Qh6 {[%emt 0:00:18]} Rf7 {[%emt 0:
00:50]} 20. Qxg6+ {[%emt 0:00:30]} Kf8 {[%emt 0:00:11]} 21. Ne6+ {[%emt 0:00:
57]} Ke8 {[%emt 0:00:05]} 22. Qg8+ {[%emt 0:00:05]} Kd7 {[%emt 0:00:05]} 23.
Bxc3 {[%emt 0:00:28]} Qb6 {[%emt 0:01:39]} 24. Qxf7 {[%emt 0:02:06]} Qe3+ {
[%emt 0:00:02]} 25. Kxd1 {[%emt 0:00:46]} Qxe4 {[%emt 0:00:22]} 26. Nc5+ {
[%emt 0:00:15]} dxc5 {[%emt 0:00:11]} 27. Qf5+ {[%emt 0:00:02]} 1-0

[Event "Wch u20 girls"]
[Site "Kocaeli"]
[Date "2013.09.24"]
[Round "11.6"]
[White "Saduakassova, Dinara"]
[Black "Khademalsharieh, Sarasadat"]
[Result "1-0"]
[ECO "E32"]
[WhiteElo "2326"]
[BlackElo "2303"]
[PlyCount "59"]
[EventDate "2013.09.??"]
[EventType "swiss"]
[EventRounds "13"]
[EventCountry "TUR"]
[Source "CBase R.Goldau"]
[SourceDate "2000.03.01"]
[TimeControl "40/5400+30:1800+30"]

1. d4 {[%emt 0:00:30]} Nf6 {[%emt 0:00:30]} 2. c4 {[%emt 0:00:00]} e6 {[%emt 0:
00:30]} 3. Nc3 {[%emt 0:00:00]} Bb4 {[%emt 0:00:00]} 4. Qc2 {[%emt 0:00:30]}
O-O {[%emt 0:00:00]} 5. e4 {[%emt 0:00:00]} d6 {[%emt 0:01:30]} 6. Bd3 {[%emt
0:00:00]} e5 {[%emt 0:00:30]} 7. d5 {[%emt 0:05:30]} c5 {[%emt 0:04:30]} 8.
Nge2 {[%emt 0:01:30]} Nbd7 {[%emt 0:01:30]} 9. f3 {[%emt 0:02:30]} Ne8 {[%emt
0:01:30]} 10. Bd2 {[%emt 0:06:30]} a6 {[%emt 0:02:30]} 11. g4 {[%emt 0:04:30]}
Qc7 {[%emt 0:02:30]} 12. a4 {[%emt 0:01:30]} Qd8 {[%emt 0:03:30]} 13. Ng3 {
[%emt 0:00:30]} Rb8 {[%emt 0:17:30]} 14. h4 {[%emt 0:02:30]} Nc7 {[%emt 0:04:
30]} 15. Nf5 {[%emt 0:16:30]} Nf6 {[%emt 0:00:30]} 16. h5 {[%emt 0:02:30]} Bxc3
{[%emt 0:14:30]} 17. Qxc3 {[%emt 0:01:30]} b5 {[%emt 0:06:30]} 18. b3 {[%emt 0:
07:30]} bxc4 {[%emt 0:00:00]} 19. Bxc4 {[%emt 0:01:30]} Bxf5 {[%emt 0:03:00]}
20. gxf5 {[%emt 0:00:00]} h6 {[%emt 0:00:30]} 21. Kf2 {[%emt 0:03:00]} Nd7 {
[%emt 0:00:30]} 22. Rag1 {[%emt 0:02:30]} Kh7 {[%emt 0:00:30]} 23. Qe3 {[%emt
0:04:30]} Qf6 {[%emt 0:00:30]} 24. Rg4 {[%emt 0:01:30]} Nb6 {[%emt 0:01:30]}
25. Be2 {[%emt 0:04:30]} Rb7 {[%emt 0:02:30]} 26. Kf1 {[%emt 0:01:30]} Nd7 {
[%emt 0:03:30]} 27. Rhg1 {[%emt 0:03:30]} Rg8 {[%emt 0:00:30]} 28. R1g2 {[%emt
0:00:30]} Ra7 {[%emt 0:01:30]} 29. Qg1 {[%emt 0:02:30]} Raa8 {[%emt 0:02:30]}
30. Be1 {[%emt 0:00:30]} 1-0

[Event "Wch u20 girls"]
[Site "Kocaeli"]
[Date "2013.09.24"]
[Round "11.7"]
[White "Fronda, Jan Jodilyn"]
[Black "Rodriguez Rueda, Paula Andrea"]
[Result "0-1"]
[ECO "B53"]
[WhiteElo "2038"]
[BlackElo "2228"]
[PlyCount "132"]
[EventDate "2013.09.??"]
[EventType "swiss"]
[EventRounds "13"]
[EventCountry "TUR"]
[Source "CBase R.Goldau"]
[SourceDate "2000.03.01"]
[TimeControl "40/5400+30:1800+30"]

1. e4 c5 2. Nf3 d6 3. d4 cxd4 4. Qxd4 a6 5. c4 Nc6 6. Qd2 g6 7. b3 Nf6 8. Nc3
Bg7 9. Bb2 O-O 10. h3 Qa5 11. Nd5 Nxe4 12. Qxa5 Nxa5 13. Nxe7+ Kh8 14. Bxg7+
Kxg7 15. Nxc8 Raxc8 16. Bd3 Nc5 17. Be2 Rfe8 18. Rd1 Nc6 19. Nd4 Nxd4 20. Rxd4
Re7 21. Kd2 Ne4+ 22. Rxe4 Rxe4 23. Bf3 Re7 24. a4 Rb8 25. b4 Kf8 26. Kc3 Rc7
27. Kd4 Ke7 28. Bd5 Re8 29. a5 Kd8 30. Bf3 Kc8 31. Rb1 Re5 32. Rb2 Kb8 33. Rb1
f6 34. Rb2 h6 35. Rb1 Rf5 36. Rc1 Ka7 37. Rc2 Re5 38. Rb2 b5 39. axb6+ Kxb6 40.
c5+ Ka7 41. c6 Kb6 42. Kc4 Rc8 43. Rd2 Rd8 44. Bd5 Re1 45. Bf3 Rc1+ 46. Kb3 Kc7
47. Re2 d5 48. Rd2 Kxc6 49. Kb2 Rc4 50. Kb3 Rf4 51. Rc2+ Kb6 52. Rc5 Rf5 53.
Ka4 Re5 54. Kb3 h5 55. Ka4 Rd6 56. Rc8 Re7 57. Rg8 f5 58. h4 Red7 59. Be2 d4
60. Bd3 Rc7 61. Rb8+ Ka7 62. Rg8 Rc3 63. Be2 d3 64. Bf3 d2 65. Ra8+ Kb6 66. Rg8
Rxf3 0-1

[Event "Wch u20 girls"]
[Site "Kocaeli"]
[Date "2013.09.24"]
[Round "11.8"]
[White "Enkhtuul, Altanulzii"]
[Black "Wang, Jue"]
[Result "1-0"]
[ECO "A48"]
[WhiteElo "2202"]
[BlackElo "2392"]
[PlyCount "153"]
[EventDate "2013.09.??"]
[EventType "swiss"]
[EventRounds "13"]
[EventCountry "TUR"]
[Source "CBase R.Goldau"]
[SourceDate "2000.03.01"]
[TimeControl "40/5400+30:1800+30"]

1. d4 d6 2. Nf3 g6 3. c3 Nf6 4. Bf4 Bg7 5. e3 Nh5 6. Bg5 h6 7. Bh4 g5 8. Bg3
Nxg3 9. hxg3 c5 10. dxc5 dxc5 11. Qxd8+ Kxd8 12. Na3 a6 13. O-O-O+ Kc7 14. Nd2
Nd7 15. Be2 b5 16. Nb3 Rb8 17. c4 b4 18. Nc2 a5 19. f4 a4 20. Nd2 Nf6 21. e4
Ng4 22. Bxg4 Bxg4 23. Rdf1 gxf4 24. Rxf4 Be6 25. Ne3 Be5 26. Rf3 a3 27. b3 Rbg8
28. Ndf1 f6 29. Nd5+ Kd7 30. Nf4 Bf7 31. Nd3 Bd4 32. Ne3 Bg6 33. Nf5 Bxf5 34.
exf5 Rg4 35. Nf4 Rhg8 36. Rh3 Kd6 37. Kd2 Be5 38. Rd3+ Kc6 39. Ng6 R8xg6 40.
fxg6 Rxg6 41. Ke2 Bd6 42. Kf2 f5 43. Rd1 e6 44. Rdh1 Bf8 45. Rh5 Bg7 46. Kf3
Rf6 47. Rd1 Rg6 48. Rd3 Be5 49. Rh3 Bd4 50. Rd1 Kd6 51. Rh4 e5 52. Rdh1 e4+ 53.
Kf4 Bc3 54. Kxf5 Rf6+ 55. Kxe4 Rf2 56. Rxh6+ Ke7 57. Rh7+ Kf6 58. Rc7 Rxa2 59.
Rxc5 Re2+ 60. Kf3 Re7 61. Rh6+ Kg7 62. Ra6 Bd4 63. Rb5 Bc3 64. c5 Rf7+ 65. Kg4
Rc7 66. Rba5 Kf7 67. Ra7 Rxa7 68. Rxa7+ Ke6 69. c6 Kd6 70. c7 Kd7 71. Kf5 Bd4
72. Ra4 Bc3 73. g4 Kxc7 74. Ke6 Kc6 75. g5 Kc5 76. g6 Bh8 77. Kf7 1-0

[Event "Wch u20 girls"]
[Site "Kocaeli"]
[Date "2013.09.24"]
[Round "11.9"]
[White "Gevorgyan, Maria"]
[Black "Styazhkina, Anna"]
[Result "1-0"]
[ECO "C50"]
[WhiteElo "2143"]
[BlackElo "2241"]
[PlyCount "119"]
[EventDate "2013.09.??"]
[EventType "swiss"]
[EventRounds "13"]
[EventCountry "TUR"]
[Source "CBase R.Goldau"]
[SourceDate "2000.03.01"]
[TimeControl "40/5400+30:1800+30"]

1. e4 e5 2. Nf3 Nc6 3. Bc4 d6 4. d4 exd4 5. Nxd4 Nf6 6. Nc3 Be7 7. O-O O-O 8.
h3 Nxd4 9. Qxd4 Nd7 10. Nd5 Ne5 11. Be2 f5 12. Nxe7+ Qxe7 13. exf5 Bxf5 14. f4
Nc6 15. Qc4+ Be6 16. Qc3 d5 17. Re1 Qd6 18. Bd2 d4 19. Qg3 Ne7 20. Bd3 Bf5 21.
Re5 Bxd3 22. Qxd3 Rad8 23. Rae1 Ng6 24. Qb3+ Kh8 25. Bb4 Qd7 26. Bxf8 Nxe5 27.
Bxg7+ Qxg7 28. Rxe5 b6 29. Qe6 Rf8 30. Rg5 Qf7 31. Qe5+ Qf6 32. Qxc7 h6 33. Rg4
Re8 34. f5 h5 35. Rg6 Re1+ 36. Kh2 Qe5+ 37. Qxe5+ Rxe5 38. Rd6 Re2 39. Rxd4
Rxc2 40. Rb4 Rf2 41. Rb5 h4 42. Rb4 Kg7 43. a4 Kf6 44. Rxh4 Rxb2 45. a5 Kxf5
46. Rh7 bxa5 47. Rh5+ Kf4 48. Rxa5 Rb7 49. g3+ Ke4 50. h4 Kd4 51. h5 Kc4 52.
Kh3 Kb4 53. Ra6 Kb5 54. Ra1 Rg7 55. Kh4 a5 56. g4 Ra7 57. h6 Kc6 58. Kh5 Kd5
59. g5 Ke5 60. g6 1-0

[Event "Wch u20 girls"]
[Site "Kocaeli"]
[Date "2013.09.24"]
[Round "11.10"]
[White "Nguyen, Thi Mai Hung"]
[Black "Xiao, Yiyi"]
[Result "0-1"]
[ECO "D05"]
[WhiteElo "2225"]
[BlackElo "2163"]
[PlyCount "62"]
[EventDate "2013.09.??"]
[EventType "swiss"]
[EventRounds "13"]
[EventCountry "TUR"]
[Source "CBase R.Goldau"]
[SourceDate "2000.03.01"]
[TimeControl "40/5400+30:1800+30"]

1. d4 Nf6 2. Nf3 d5 3. e3 e6 4. Bd3 c5 5. b3 Nc6 6. Bb2 Bd6 7. Nbd2 O-O 8. a3
b6 9. Ne5 Bb7 10. f4 Ne7 11. Qf3 Rc8 12. O-O Ba8 13. Qh3 Ne4 14. Rad1 Nf5 15.
g4 Qh4 16. Qf3 Nh6 17. g5 Nf5 18. c3 f6 19. gxf6 Rxf6 20. Nxe4 dxe4 21. Bxe4
Bxe4 22. Qxe4 Bxe5 23. Rd2 Bd6 24. Rg2 Qh5 25. d5 exd5 26. Qxd5+ Qf7 27. Qd2
Re8 28. c4 Rg6 29. Re1 Nh4 30. Rxg6 Nf3+ 31. Kh1 hxg6 0-1